bitfinex-derivatives/quotes_BTCF0:USTF0_20250614
["timestamp","ask_amount","ask_price","bid_price","bid_amount"]
[1749861487112,0.85385714,105930.0,105920.0,0.33622075]
[1749861487310,0.49305714,105930.0,105920.0,0.33622072]
[1749861487507,0.49305714,105930.0,105920.0,0.33621807]
[1749861487712,0.49305714,105930.0,105920.0,0.33617357]
[1749861487910,0.49305714,105930.0,105920.0,0.32306797]
[1749861488107,0.45325714,105930.0,105920.0,0.32306797]
[1749861488513,0.45325714,105930.0,105920.0,0.32306793]
[1749861490313,0.45325714,105930.0,105920.0,0.35701664]
[1749861490513,0.45325714,105930.0,105920.0,0.36730541]
[1749861490908,0.40607524,105930.0,105920.0,0.3673054]
[1749861491110,0.40607524,105930.0,105920.0,0.35701664]
[1749861491313,0.40607524,105930.0,105920.0,0.36730538]
[1749861491515,0.40607524,105930.0,105920.0,0.36730158]
[1749861491716,0.40607524,105930.0,105920.0,0.35701664]
[1749861492026,0.40607524,105930.0,105920.0,0.72810158]
[1749861492220,0.40607524,105930.0,105920.0,0.72810144]
[1749861492720,0.40607524,105930.0,105920.0,0.71781664]
[1749861492913,0.40607524,105930.0,105920.0,1.52326143]
[1749861494419,0.40607524,105930.0,105920.0,1.52325684]
[1749861496122,0.40607524,105930.0,105920.0,1.52325389]
[1749861497614,0.40607524,105930.0,105920.0,1.52325859]
[1749861497916,0.40607524,105930.0,105920.0,1.51297664]
[1749861498516,0.40607524,105930.0,105920.0,1.52325857]
[1749861498712,0.40607524,105930.0,105920.0,1.51297664]
[1749861498918,0.40607524,105930.0,105920.0,1.52325857]
[1749861499810,0.40607524,105930.0,105920.0,1.51911848]
[1749861500825,0.35889634,105930.0,105920.0,1.52325683]
[1749861501116,0.08226957,105930.0,105920.0,1.52325683]
[1749861501324,0.27098247,105930.0,105920.0,1.58206088]
[1749861501522,0.27098247,105930.0,105920.0,1.57178078]
[1749861501825,0.27098247,105930.0,105920.0,1.58206077]
[1749861502025,0.27098247,105930.0,105920.0,1.57178078]
[1749861502219,0.27098247,105930.0,105920.0,1.58206076]
[1749861502418,0.27098247,105930.0,105920.0,1.59527734]
[1749861502624,0.27098247,105930.0,105920.0,1.58206076]
[1749861503018,0.38853408,105930.0,105920.0,1.49223575]
[1749861503214,0.38853408,105930.0,105920.0,1.49223638]
[1749861503528,0.38853408,105930.0,105920.0,1.47901913]
[1749861503726,0.38853408,105930.0,105920.0,1.49223702]
[1749861503921,0.38853408,105930.0,105920.0,1.48195703]
[1749861504226,0.38853408,105930.0,105920.0,1.49223732]
[1749861504527,0.38853408,105930.0,105920.0,1.48195671]
[1749861504726,0.38853408,105930.0,105920.0,1.47901913]
[1749861505126,0.38853408,105930.0,105920.0,1.43770903]
[1749861505430,0.38853408,105930.0,105920.0,1.44070595]
[1749861505727,0.38853408,105930.0,105920.0,1.44070857]
[1749861505917,0.38853408,105930.0,105920.0,1.44070858]
[1749861506121,0.38853408,105930.0,105920.0,1.45098874]
[1749861506322,0.38853408,105930.0,105920.0,0.65582873]
[1749861506527,0.38853408,105930.0,105920.0,1.64286873]
[1749861506831,0.38853408,105930.0,105920.0,1.63258857]
[1749861507023,0.38853408,105930.0,105920.0,1.6428683]
[1749861507220,0.38853408,105930.0,105920.0,1.61930905]
[1749861507424,0.38853408,105930.0,105920.0,1.6295892]
[1749861507629,0.38853408,105930.0,105920.0,1.64286101]
[1749861507926,0.38853408,105930.0,105920.0,1.6295892]
[1749861508119,0.38853408,105930.0,105920.0,1.64285816]
[1749861508433,0.38853408,105930.0,105920.0,1.63258086]
[1749861508621,0.38853408,105930.0,105920.0,1.61930905]
[1749861508822,0.38853408,105930.0,105920.0,1.64285818]
[1749861509129,0.38853408,105930.0,105920.0,1.64285815]
[1749861509323,0.38853408,105930.0,105920.0,1.64287722]
[1749861509524,0.38853408,105930.0,105920.0,1.64287721]
[1749861509726,0.38853408,105930.0,105920.0,1.62959467]
[1749861509921,0.38853408,105930.0,105920.0,1.28209167]
[1749861510229,0.38853408,105930.0,105920.0,1.64290136]
[1749861510524,0.38853408,105930.0,105920.0,1.66063275]
[1749861510823,0.38853408,105930.0,105920.0,1.68422473]
[1749861511028,0.38853408,105930.0,105920.0,1.68421002]
[1749861511328,0.38853408,105930.0,105920.0,1.68420107]
[1749861511520,0.38853408,105930.0,105920.0,1.6841994]
[1749861511726,0.38853408,105930.0,105920.0,1.68419698]
[1749861511923,0.38853408,105930.0,105920.0,1.68419395]
[1749861512119,0.38853408,105930.0,105920.0,1.66063275]
[1749861512429,0.38853408,105930.0,105920.0,1.6738783]
[1749861512726,0.38853408,105930.0,105920.0,1.67387429]
[1749861513030,0.27098247,105930.0,105920.0,1.76367438]
[1749861513228,0.27098247,105930.0,105920.0,1.7769068]
[1749861513528,0.27098247,105930.0,105920.0,1.78719365]
[1749861513725,0.27098247,105930.0,105920.0,1.76367438]
[1749861514120,0.27098247,105930.0,105920.0,1.77689066]
[1749861514333,0.27098247,105930.0,105920.0,1.78716443]
[1749861514731,0.27098247,105930.0,105920.0,1.77688356]
[1749861514929,0.27098247,105930.0,105920.0,1.78715733]
[1749861515129,0.27098247,105930.0,105920.0,1.77394814]
[1749861515432,0.27098247,105930.0,105920.0,1.78715733]
[1749861515631,0.27098247,105930.0,105920.0,1.78715734]
[1749861515832,0.27098247,105930.0,105920.0,1.78715735]
[1749861516226,0.27098247,105930.0,105920.0,1.78715734]
[1749861516531,0.27098247,105930.0,105920.0,1.78715733]
[1749861516923,0.27098247,105930.0,105920.0,1.77688361]
[1749861517222,0.27098247,105930.0,105920.0,1.76367438]
[1749861517422,0.27098247,105930.0,105920.0,1.77394814]
[1749861517625,0.27098247,105930.0,105920.0,1.78715733]
[1749861517825,0.27098247,105930.0,105920.0,1.78715735]
[1749861518223,0.27098247,105930.0,105920.0,1.7769256]
[1749861518423,0.27098247,105930.0,105920.0,1.7769213]
[1749861518623,0.27098247,105930.0,105920.0,1.76367438]
[1749861518824,0.27098247,105930.0,105920.0,1.77690551]
[1749861519032,0.27098247,105930.0,105920.0,1.78717933]
[1749861519228,0.27098247,105930.0,105920.0,1.77690508]
[1749861519633,0.27098247,105930.0,105920.0,1.78717889]
[1749861520125,0.27098247,105930.0,105920.0,1.77690507]
[1749861520320,0.27098247,105930.0,105920.0,1.41610507]
[1749861520527,0.35919429,105930.0,105920.0,1.41616528]
[1749861520923,0.27098247,105930.0,105920.0,1.78724305]
[1749861521123,0.27098247,105930.0,105920.0,1.77395214]
[1749861521321,0.27098247,105930.0,105920.0,1.78723122]
[1749861522132,0.35919429,105930.0,105920.0,1.78723122]
[1749861522335,0.35919429,105930.0,105920.0,1.78723642]
[1749861522827,0.35919429,105930.0,105920.0,1.70911642]
[1749861523033,0.47379429,105930.0,105920.0,1.70913087]
[1749861523234,0.47379429,105930.0,105920.0,1.69583218]
[1749861523628,0.47379429,105930.0,105920.0,1.6988531]
[1749861523828,0.47379429,105930.0,105920.0,1.26595024]
[1749861524028,0.47379429,105930.0,105920.0,1.28956916]
[1749861524334,0.47379429,105930.0,105920.0,1.28956915]
[1749861524529,0.47379429,105930.0,105920.0,1.28956004]
[1749861524834,0.47379429,105930.0,105920.0,1.2895408]
[1749861525028,0.47379429,105930.0,105920.0,1.31242807]
[1749861525228,0.47379429,105930.0,105920.0,1.3845366]
[1749861525430,0.47379429,105930.0,105920.0,1.37123124]
[1749861525627,0.43499429,105930.0,105920.0,1.41245734]
[1749861525833,0.43499429,105930.0,105920.0,1.4227342]
[1749861526335,0.43499429,105930.0,105920.0,1.42275826]
[1749861526634,0.39879429,105930.0,105920.0,1.78355826]
[1749861527027,0.31058247,105930.0,105920.0,1.77323756]
[1749861527329,0.31058247,105930.0,105920.0,1.77024168]
[1749861527634,0.31058247,105930.0,105920.0,1.78351694]
[1749861527835,0.31058247,105930.0,105920.0,1.78351693]
[1749861528136,0.39879429,105930.0,105920.0,1.77322963]
[1749861528326,0.31058247,105930.0,105920.0,1.77024168]
[1749861528526,0.31058247,105930.0,105920.0,1.77322963]
[1749861528733,0.31058247,105930.0,105920.0,1.77024168]
[1749861529134,0.31058247,105930.0,105920.0,1.78351043]
[1749861529535,0.31058247,105930.0,105920.0,1.77023664]
[1749861529930,0.31058247,105930.0,105920.0,1.78350539]
[1749861530130,0.31058247,105930.0,105920.0,1.77023664]
[1749861530337,0.31058247,105930.0,105920.0,1.78350537]
[1749861530534,0.31058247,105930.0,105920.0,1.75995438]
[1749861530840,0.31058247,105930.0,105920.0,1.77023411]
[1749861531052,0.31058247,105930.0,105920.0,1.78349627]
[1749861531341,0.39879429,105930.0,105920.0,1.78349627]
[1749861531540,0.31058247,105930.0,105920.0,1.78349367]
[1749861531742,0.31058247,105930.0,105920.0,1.78349096]
[1749861532130,0.35919429,105930.0,105920.0,1.78351304]
[1749861532536,0.35919429,105930.0,105920.0,1.7835163]
[1749861532840,0.35919429,105930.0,105920.0,1.78351629]
[1749861533449,0.35919429,105930.0,105920.0,1.78351628]
[1749861533745,0.35919429,105930.0,105920.0,1.7732365]
[1749861534043,0.35919429,105930.0,105920.0,1.78351629]
[1749861534245,0.35919429,105930.0,105920.0,1.7835163]
[1749861534747,0.27098247,105930.0,105920.0,1.7834831]
[1749861534945,0.27098247,105930.0,105920.0,1.783483]
[1749861535140,0.27098247,105930.0,105920.0,1.77023406]
[1749861535336,0.08226957,105930.0,105920.0,1.78347932]
[1749861535646,0.08226957,105930.0,105920.0,1.82772045]
[1749861536146,0.08226957,105930.0,105920.0,1.82770379]
[1749861536346,0.08226957,105930.0,105920.0,1.81742216]
[1749861536647,0.08226957,105930.0,105920.0,1.82767823]
[1749861536852,0.08226957,105930.0,105920.0,1.82766991]
[1749861537053,0.07441569,105930.0,105920.0,1.88737369]
[1749861537250,0.07441569,105930.0,105920.0,1.89763774]
[1749861537550,0.07441569,105930.0,105920.0,1.84745388]
[1749861537750,0.07441569,105930.0,105920.0,1.83432607]
[1749861538054,0.07441569,105930.0,105920.0,1.83432605]
[1749861538256,0.07441569,105930.0,105920.0,1.82404476]
[1749861538555,0.07441569,105930.0,105920.0,1.83432591]
[1749861538756,0.07441569,105930.0,105920.0,1.8343259]
[1749861539054,0.07441569,105930.0,105920.0,1.83432589]
[1749861539359,0.07441569,105930.0,105920.0,1.84766815]
[1749861539656,0.00014185,105930.0,105920.0,2.07766815]
[1749861539847,0.00014185,105930.0,105920.0,2.06738702]
[1749861540048,0.39000352,105950.0,105940.0,0.1886951]
[1749861540244,0.16821182,105950.0,105940.0,1.64397684]
[1749861540449,0.84971612,105960.0,105950.0,0.1886773]
[1749861540650,1.04971612,105960.0,105950.0,0.3600942]
[1749861540956,0.68891612,105960.0,105950.0,0.72088214]
[1749861541256,0.5229043,105960.0,105950.0,0.71061349]
[1749861541453,0.53174933,105960.0,105950.0,0.71061349]
[1749861541652,0.53174933,105960.0,105950.0,0.74811349]
[1749861541850,0.53174933,105960.0,105950.0,0.75838199]
[1749861542055,0.53174933,105960.0,105950.0,0.74811349]
[1749861542450,0.89254933,105960.0,105950.0,0.05160173]
[1749861542645,1.09390132,105960.0,105950.0,0.06477755]
[1749861542860,1.09390132,105960.0,105950.0,0.24737899]
[1749861543157,1.12324111,105960.0,105950.0,0.20605529]
[1749861543350,1.21761711,105960.0,105950.0,0.0142605]
[1749861543551,1.24681315,105960.0,105950.0,0.0142605]
[1749861543753,1.24681315,105960.0,105950.0,0.001]
[1749861543962,1.24681315,105960.0,105950.0,0.01431755]
[1749861544153,1.15243715,105960.0,105950.0,0.01431755]
[1749861544859,0.1886773,105950.0,105940.0,1.26834225]
[1749861545157,0.78000692,105950.0,105940.0,1.28164818]
[1749861545357,0.78000692,105950.0,105940.0,0.47506225]
[1749861545555,0.78000692,105950.0,105940.0,0.01344625]
[1749861545862,0.78000692,105950.0,105940.0,0.39403363]
[1749861546056,0.78000692,105950.0,105940.0,0.00014185]
[1749861546356,0.78000692,105950.0,105940.0,0.39503724]
[1749861546557,0.78000692,105950.0,105940.0,0.19302185]
[1749861546756,0.78000692,105950.0,105940.0,0.20638975]
[1749861546965,0.78000692,105950.0,105940.0,0.20639393]
[1749861547155,0.78000692,105950.0,105940.0,0.19302185]
[1749861547356,0.78000692,105950.0,105940.0,0.20639392]
[1749861547561,0.78000692,105950.0,105940.0,0.19302185]
[1749861547860,0.78000692,105950.0,105940.0,0.20639513]
[1749861548055,0.78000692,105950.0,105940.0,0.19302185]
[1749861548555,0.78000692,105950.0,105940.0,0.20639513]
[1749861548761,0.78000692,105950.0,105940.0,0.19302185]
[1749861549155,1.09000692,105950.0,105940.0,0.00114185]
[1749861549353,1.11932495,105950.0,105940.0,0.01451514]
[1749861549655,1.11932495,105950.0,105940.0,0.0146224]
[1749861549857,0.86932495,105950.0,105940.0,0.20329022]
[1749861550159,0.33674627,105950.0,105940.0,0.40532301]
[1749861550456,0.6094773,105950.0,105940.0,0.39504471]
[1749861550660,0.6882773,105950.0,105940.0,0.40528265]
[1749861550959,0.6882773,105950.0,105940.0,0.40528262]
[1749861551157,0.6882773,105950.0,105940.0,0.38171695]
[1749861551355,0.6882773,105950.0,105940.0,0.40528627]
[1749861551660,0.6902773,105950.0,105940.0,0.39403045]
[1749861551851,0.6902773,105950.0,105940.0,0.41757556]
[1749861552052,0.6902773,105950.0,105940.0,0.41757369]
[1749861552554,0.6882773,105950.0,105940.0,0.40426622]
[1749861552861,0.6882773,105950.0,105940.0,0.41757372]
[1749861553062,0.77634724,105950.0,105940.0,0.44549032]
[1749861553360,0.77634724,105950.0,105940.0,0.4587978]
[1749861553760,0.77634724,105950.0,105940.0,0.44856203]
[1749861554962,0.77634724,105950.0,105940.0,0.44856593]
[1749861555158,0.77634724,105950.0,105940.0,0.43525455]
[1749861555362,0.77634724,105950.0,105940.0,0.4485622]
[1749861555565,0.77634724,105950.0,105940.0,0.45880413]
[1749861555762,0.71634724,105950.0,105940.0,0.45879449]
[1749861555965,0.71634724,105950.0,105940.0,0.45879461]
[1749861556363,0.71634724,105950.0,105940.0,0.45879465]
[1749861556660,0.63754724,105950.0,105940.0,0.45879404]
[1749861556867,0.63754724,105950.0,105940.0,0.55999646]
[1749861557359,0.63754724,105950.0,105940.0,0.55999647]
[1749861557564,0.63754724,105950.0,105940.0,0.573292]
[1749861557951,0.63754724,105950.0,105940.0,0.57429058]
[1749861558156,0.63754724,105950.0,105940.0,0.57429137]
[1749861558357,0.63754724,105950.0,105940.0,0.53306727]
[1749861558558,0.63754724,105950.0,105940.0,0.5330673]
[1749861558867,0.63754724,105950.0,105940.0,0.53308011]
[1749861559166,0.27674724,105950.0,105940.0,0.56101506]
[1749861559466,0.27674724,105950.0,105940.0,0.5742658]
[1749861559664,0.27674724,105950.0,105940.0,0.57840358]
[1749861559859,0.63754724,105950.0,105940.0,0.02884538]
[1749861560054,0.71034724,105950.0,105940.0,0.41251749]
[1749861560367,0.71034724,105950.0,105940.0,0.4227718]
[1749861560568,0.71034724,105950.0,105940.0,0.41252003]
[1749861560864,0.71034724,105950.0,105940.0,0.41252005]
[1749861561065,0.71034724,105950.0,105940.0,0.40941612]
[1749861561266,0.71034724,105950.0,105940.0,0.41252004]
[1749861561463,0.71034724,105950.0,105940.0,0.42276726]
[1749861561769,0.67414724,105950.0,105940.0,0.42273766]
[1749861561962,0.27674724,105950.0,105940.0,0.45249058]
[1749861562159,0.27674724,105950.0,105940.0,0.48901585]
[1749861562461,0.27674724,105950.0,105940.0,0.54351228]
[1749861562759,0.27674724,105950.0,105940.0,0.52001142]
[1749861562959,0.27674724,105950.0,105940.0,0.54352084]
[1749861563161,0.63754724,105950.0,105940.0,0.53025844]
[1749861563365,0.63754724,105950.0,105940.0,0.53327418]
[1749861563559,0.63754724,105950.0,105940.0,0.54352303]
[1749861564168,0.63754724,105950.0,105940.0,0.54352301]
[1749861564364,0.63754724,105950.0,105940.0,0.54352302]
[1749861564571,0.63754724,105950.0,105940.0,0.54351561]
[1749861565066,0.63754724,105950.0,105940.0,0.53025209]
[1749861565266,0.63754724,105950.0,105940.0,0.54350857]
[1749861565768,0.63754724,105950.0,105940.0,0.54349353]
[1749861566070,0.63754724,105950.0,105940.0,0.53025209]
[1749861566564,0.63754724,105950.0,105940.0,0.54349354]
[1749861566763,0.63754724,105950.0,105940.0,0.53025209]
[1749861566967,0.63754724,105950.0,105940.0,0.53325285]
[1749861567371,0.63754724,105950.0,105940.0,0.54349352]
[1749861567565,0.63754724,105950.0,105940.0,0.54349354]
[1749861568068,0.63754724,105950.0,105940.0,0.53025209]
[1749861568465,0.63754724,105950.0,105940.0,0.54349351]
[1749861568664,0.63754724,105950.0,105940.0,0.54349354]
[1749861568971,0.63754724,105950.0,105940.0,0.53325287]
[1749861569272,0.63754724,105950.0,105940.0,0.54349354]
[1749861569572,0.63754724,105950.0,105940.0,0.53025209]
[1749861569767,0.63754724,105950.0,105940.0,0.54349352]
[1749861569973,0.63754724,105950.0,105940.0,0.54349351]
[1749861570167,0.63754724,105950.0,105940.0,0.53025209]
[1749861570367,0.63754724,105950.0,105940.0,0.53325283]
[1749861570567,0.63754724,105950.0,105940.0,0.54349341]
[1749861570765,0.63754724,105950.0,105940.0,0.54349138]
[1749861571071,0.63754724,105950.0,105940.0,0.53325086]
[1749861571273,0.63754724,105950.0,105940.0,0.53325085]
[1749861571467,0.63754724,105950.0,105940.0,0.53324551]
[1749861571662,0.08806994,105950.0,105940.0,0.57446428]
[1749861571867,0.81456474,105960.0,105950.0,0.1886775]
[1749861572067,0.45376474,105960.0,105950.0,0.34372002]
[1749861572269,0.45376474,105960.0,105950.0,0.35396015]
[1749861572469,0.45376474,105960.0,105950.0,0.35396008]
[1749861572669,0.45376474,105960.0,105950.0,0.34372002]
[1749861572861,0.45376474,105960.0,105950.0,0.35398103]
[1749861573173,0.45376474,105960.0,105950.0,0.35398102]
[1749861573472,0.45376474,105960.0,105950.0,0.39819351]
[1749861573774,0.45376474,105960.0,105950.0,0.40127372]
[1749861573966,0.45376474,105960.0,105950.0,0.4115036]
[1749861574166,0.45376474,105960.0,105950.0,0.39816579]
[1749861574366,0.45376474,105960.0,105950.0,0.3682911]
[1749861574569,0.45376474,105960.0,105950.0,0.35805782]
[1749861574775,0.45376474,105960.0,105950.0,0.41247955]
[1749861574974,0.45376474,105960.0,105950.0,0.32702454]
[1749861575171,0.45376474,105960.0,105950.0,0.39917453]
[1749861575371,0.45376474,105960.0,105950.0,0.36829251]
[1749861575975,0.45376474,105960.0,105950.0,0.36829291]
[1749861576370,0.45376474,105960.0,105950.0,0.3580597]
[1749861576569,0.45376474,105960.0,105950.0,0.3682929]
[1749861576877,0.35941474,105960.0,105950.0,1.16049289]
[1749861577171,0.35941474,105960.0,105950.0,1.16049287]
[1749861577380,0.35941474,105960.0,105950.0,1.49774391]
[1749861577571,0.35941474,105960.0,105950.0,1.50797702]
[1749861577771,0.35941474,105960.0,105950.0,1.51101898]
[1749861578272,0.07384017,105960.0,105950.0,1.51101404]
[1749861578572,0.77910912,105970.0,105960.0,0.1886596]
[1749861578775,0.88910912,105970.0,105960.0,0.4774104]
[1749861578976,0.79478242,105970.0,105960.0,0.46717735]
[1749861579281,0.68478242,105970.0,105960.0,0.49515106]
[1749861579578,0.59671248,105970.0,105960.0,0.50538378]
[1749861579876,0.59671248,105970.0,105960.0,0.51852572]
[1749861580275,0.59671248,105970.0,105960.0,0.51852574]
[1749861580578,0.59671248,105970.0,105960.0,0.5082931]
[1749861580771,0.59671248,105970.0,105960.0,0.50829303]
[1749861580972,0.59671248,105970.0,105960.0,0.51852581]
[1749861581469,0.59671248,105970.0,105960.0,0.50829309]
[1749861581772,0.59671248,105970.0,105960.0,0.51852923]
[1749861582177,0.59671248,105970.0,105960.0,0.51852926]
[1749861582372,0.60567682,105970.0,105960.0,0.5082965]
[1749861582563,0.60567682,105970.0,105960.0,0.49515106]
[1749861582764,0.68139555,105970.0,105960.0,0.50829654]
[1749861582964,0.76946549,105970.0,105960.0,0.4772978]
[1749861583669,0.76946549,105970.0,105960.0,0.46415233]
[1749861583871,0.76946549,105970.0,105960.0,0.46707256]
[1749861584074,0.76946549,105970.0,105960.0,0.46706516]
[1749861584471,0.76946549,105970.0,105960.0,0.46706515]
[1749861584872,0.76946549,105970.0,105960.0,0.4539196]
[1749861585274,0.76946549,105970.0,105960.0,0.3799796]
[1749861585475,0.1886599,105960.0,105950.0,0.2358366]
[1749861585675,0.67752984,105960.0,105950.0,0.4743256]
[1749861585875,0.67752984,105960.0,105950.0,0.49801303]
[1749861585876,0.75482984,105960.0,105950.0,0.49801303]
[1749861586073,0.75482984,105960.0,105950.0,0.20209555]
[1749861586280,0.75482984,105960.0,105950.0,0.21236013]
[1749861586478,0.75482984,105960.0,105950.0,0.20209905]
[1749861586668,0.75482984,105960.0,105950.0,0.40468012]
[1749861586868,0.75482984,105960.0,105950.0,0.21335766]
[1749861587069,0.75482984,105960.0,105950.0,0.39124947]
[1749861587274,0.75482984,105960.0,105950.0,0.40468914]
[1749861587585,0.75482984,105960.0,105950.0,0.40466151]
[1749861587776,0.75482984,105960.0,105950.0,0.40466143]
[1749861588283,0.75482984,105960.0,105950.0,0.40469724]
[1749861588773,0.75482984,105960.0,105950.0,0.40470304]
[1749861588979,0.75482984,105960.0,105950.0,0.40468685]
[1749861589481,0.75482984,105960.0,105950.0,0.40465541]
[1749861589676,0.75482984,105960.0,105950.0,0.39439629]
[1749861589876,0.75482984,105960.0,105950.0,0.3912476]
[1749861590076,0.75482984,105960.0,105950.0,0.39858361]
[1749861590279,0.75482984,105960.0,105950.0,0.4088601]
[1749861590483,0.75482984,105960.0,105950.0,0.40885151]
[1749861590676,0.75482984,105960.0,105950.0,0.40881479]
[1749861590976,0.75482984,105960.0,105950.0,0.40880629]
[1749861591182,0.75482984,105960.0,105950.0,0.40470041]
[1749861591879,0.75482984,105960.0,105950.0,0.39444116]
[1749861592080,0.75482984,105960.0,105950.0,0.39857951]
[1749861592582,0.75482984,105960.0,105950.0,0.19380675]
[1749861592784,0.75482984,105960.0,105950.0,0.39837801]
[1749861592985,0.75482984,105960.0,105950.0,0.38512675]
[1749861593283,0.75482984,105960.0,105950.0,0.39837145]
[1749861593476,0.75482984,105960.0,105950.0,0.39836345]
[1749861593675,0.75482984,105960.0,105950.0,0.38512675]
[1749861593880,0.75482984,105960.0,105950.0,0.39839995]
[1749861594082,0.75482984,105960.0,105950.0,0.38512675]
[1749861594281,0.75482984,105960.0,105950.0,0.39839996]
[1749861594482,0.75482984,105960.0,105950.0,0.38512675]
[1749861594684,0.75482984,105960.0,105950.0,0.39838526]
[1749861594885,0.75482984,105960.0,105950.0,0.38512675]
[1749861595182,0.75482984,105960.0,105950.0,0.39838526]
[1749861595584,0.75482984,105960.0,105950.0,0.39838527]
[1749861596182,0.75482984,105960.0,105950.0,0.38512675]
[1749861596383,0.75482984,105960.0,105950.0,0.39838044]
[1749861596585,0.75482984,105960.0,105950.0,0.39838373]
[1749861596790,0.75482984,105960.0,105950.0,0.39839264]
[1749861597286,0.75482984,105960.0,105950.0,0.39839063]
[1749861597481,0.87225211,105960.0,105950.0,0.39839063]
[1749861598286,0.75482984,105960.0,105950.0,0.39839063]
[1749861598685,0.75482984,105960.0,105950.0,0.39841406]
[1749861598883,0.87225211,105960.0,105950.0,0.39841406]
[1749861599587,0.87225211,105960.0,105950.0,0.39838734]
[1749861599786,0.87225211,105960.0,105950.0,0.39839645]
[1749861599986,0.87225211,105960.0,105950.0,0.38512675]
[1749861600383,0.78418217,105960.0,105950.0,0.0184116]
[1749861600590,0.78418217,105960.0,105950.0,0.2091716]
[1749861601092,0.78418217,105960.0,105950.0,0.3979217]
[1749861601591,0.78418217,105960.0,105950.0,0.39792764]
[1749861601792,0.78418217,105960.0,105950.0,0.39791734]
[1749861602083,0.78418217,105960.0,105950.0,0.38457605]
[1749861602679,0.78418217,105960.0,105950.0,0.43411703]
[1749861602878,0.78418217,105960.0,105950.0,0.43411704]
[1749861603190,0.75490093,105960.0,105950.0,0.47535544]
[1749861603386,0.75490093,105960.0,105950.0,0.28459543]
[1749861603583,0.75490093,105960.0,105950.0,0.47535531]
[1749861603784,0.75490093,105960.0,105950.0,0.46201415]
[1749861603991,0.75490093,105960.0,105950.0,0.47535516]
[1749861604179,0.75490093,105960.0,105950.0,0.46201415]
[1749861604682,0.75490093,105960.0,105950.0,0.47535516]
[1749861604880,0.75490093,105960.0,105950.0,0.46201415]
[1749861605076,0.75490093,105960.0,105950.0,0.47535925]
[1749861605280,0.75490093,105960.0,105950.0,0.46201415]
[1749861605485,0.75490093,105960.0,105950.0,0.47535919]
[1749861605687,0.75490093,105960.0,105950.0,0.47535921]
[1749861605987,0.75490093,105960.0,105950.0,0.4753592]
[1749861606181,0.75490093,105960.0,105950.0,0.46201415]
[1749861606388,0.75490093,105960.0,105950.0,0.4753592]
[1749861606589,0.75490093,105960.0,105950.0,0.47535921]
[1749861606791,0.75490093,105960.0,105950.0,0.46201415]
[1749861607387,0.75490093,105960.0,105950.0,0.47535414]
[1749861607787,0.75490093,105960.0,105950.0,0.47535415]
[1749861607988,0.75490093,105960.0,105950.0,0.51495415]
[1749861608187,0.75490093,105960.0,105950.0,0.51495414]
[1749861608987,0.75490093,105960.0,105950.0,0.5149541]
[1749861609489,0.75490093,105960.0,105950.0,0.51495417]
[1749861609687,0.75490093,105960.0,105950.0,0.50161415]
[1749861609987,0.75490093,105960.0,105950.0,0.51494954]
[1749861610185,0.67760093,105960.0,105950.0,0.23713645]
[1749861610391,0.78428217,105960.0,105950.0,0.20928522]
[1749861610592,0.6668599,105960.0,105950.0,0.20928522]
[1749861610785,1.10428217,105960.0,105950.0,0.20928522]
[1749861611187,0.6668599,105960.0,105950.0,0.2093176]
[1749861611385,0.78428217,105960.0,105950.0,0.20517928]
[1749861611587,0.78428217,105960.0,105950.0,0.19176]
[1749861611787,1.07428217,105960.0,105950.0,0.20517928]
[1749861611988,1.07428217,105960.0,105950.0,0.20517929]
[1749861612390,0.78428217,105960.0,105950.0,0.001]
[1749861612594,0.78428217,105960.0,105950.0,0.01441922]
[1749861612896,0.78428217,105960.0,105950.0,0.01441926]
[1749861613396,1.07428217,105960.0,105950.0,0.01441925]
[1749861613798,1.07428217,105960.0,105950.0,0.01441924]
[1749861613999,1.07428217,105960.0,105950.0,0.02467219]
[1749861614295,0.78428217,105960.0,105950.0,0.0246722]
[1749861614896,0.78428217,105960.0,105950.0,0.02467218]
[1749861615098,0.78428217,105960.0,105950.0,0.02467219]
[1749861615293,1.09428217,105960.0,105950.0,0.0525223]
[1749861615496,1.16428217,105960.0,105950.0,0.01125294]
[1749861615795,1.16428217,105960.0,105950.0,0.02467218]
[1749861616185,1.16428217,105960.0,105950.0,0.01125294]
[1749861616391,1.16428217,105960.0,105950.0,0.02469667]
[1749861616602,1.16428217,105960.0,105950.0,0.02469666]
[1749861616801,1.16428217,105960.0,105950.0,0.01125294]
[1749861616993,1.16428217,105960.0,105950.0,0.02469665]
[1749861617501,0.78428217,105960.0,105950.0,0.01441472]
[1749861617800,0.97508217,105960.0,105950.0,0.07629842]
[1749861617999,0.97508217,105960.0,105950.0,0.07629838]
[1749861618295,0.97508217,105960.0,105950.0,0.0379]
[1749861618600,0.97508217,105960.0,105950.0,0.08043678]
[1749861618792,0.97508217,105960.0,105950.0,0.08043686]
[1749861618994,0.97508217,105960.0,105950.0,0.08046346]
[1749861619196,0.97508217,105960.0,105950.0,0.08046344]
[1749861619394,1.32508217,105960.0,105950.0,0.0763305]
[1749861619596,0.97508217,105960.0,105950.0,0.03943054]
[1749861619798,1.27508217,105960.0,105950.0,0.03943367]
[1749861619999,0.97508217,105960.0,105950.0,0.039427]
[1749861620202,1.32508217,105960.0,105950.0,0.03941842]
[1749861620400,1.32508217,105960.0,105950.0,0.02916444]
[1749861620599,1.32508217,105960.0,105950.0,0.02596784]
[1749861620795,1.32508217,105960.0,105950.0,0.01448954]
[1749861621096,1.32508217,105960.0,105950.0,0.03945781]
[1749861621400,1.32508217,105960.0,105950.0,0.0394578]
[1749861621602,1.32508217,105960.0,105950.0,0.03945784]
[1749861621901,1.32508217,105960.0,105950.0,0.01448622]
[1749861622102,1.32508217,105960.0,105950.0,0.03945774]
[1749861622301,1.32508217,105960.0,105950.0,0.02597151]
[1749861622600,1.32508217,105960.0,105950.0,0.0291998]
[1749861622802,1.32508217,105960.0,105950.0,0.03946349]
[1749861623000,1.32508217,105960.0,105950.0,0.03946011]
[1749861623295,1.32508217,105960.0,105950.0,0.03951457]
[1749861623500,1.32508217,105960.0,105950.0,0.02926453]
[1749861623692,1.32508217,105960.0,105950.0,0.01357604]
[1749861623893,0.1886777,105950.0,105940.0,0.01345535]
[1749861624096,0.75585278,105950.0,105940.0,0.05471761]
[1749861625195,0.75585278,105950.0,105940.0,0.05771761]
[1749861626100,0.75585278,105950.0,105940.0,0.05971761]
[1749861628302,1.12509997,105950.0,105940.0,0.01845535]
[1749861630202,1.91545997,105950.0,105940.0,0.01845535]
[1749861634004,1.91545997,105950.0,105940.0,0.02871141]
[1749861634507,1.91545997,105950.0,105940.0,0.02871167]
[1749861636407,1.91545997,105950.0,105940.0,0.0434393]
[1749861636806,1.91545997,105950.0,105940.0,0.01845535]
[1749861636995,1.12509997,105950.0,105940.0,0.03314976]
[1749861637202,1.73713997,105950.0,105940.0,0.03314976]
[1749861637406,0.94709997,105950.0,105940.0,0.10904976]
[1749861637602,0.98609997,105950.0,105940.0,0.09435535]
[1749861638006,0.98609997,105950.0,105940.0,0.10907211]
[1749861638206,0.98609997,105950.0,105940.0,0.09435535]
[1749861638406,0.98609997,105950.0,105940.0,0.10907213]
[1749861638603,0.98609997,105950.0,105940.0,0.10907214]
[1749861638911,0.98609997,105950.0,105940.0,0.10907212]
[1749861639111,0.98609997,105950.0,105940.0,0.10907214]